fUSD/lending_fUSD_20250716
["ID","MTS","AMOUNT","RATE_DAILY","PERIOD"]
[372588361,1752694270639,-460.0,0.00020821,2]
[372588362,1752694270649,-460.0,0.00020821,2]
[372588363,1752694270660,-2871.51,0.00020821,2]
[372588364,1752694270671,-571.84,0.00020821,2]
[372588365,1752694270681,-460.0,0.00020821,2]
[372588366,1752694270691,-2481.38,0.00020821,2]
[372588367,1752694270701,-1545.1,0.00020821,2]
[372588368,1752694270714,-865.4,0.00020821,2]
[372588369,1752694270724,-579.12,0.00020821,2]
[372588370,1752694270734,-2865.57,0.00020821,2]
[372588371,1752694270744,-3341.64,0.00020821,2]
[372588372,1752694270757,-954.59,0.00020821,2]
[372588373,1752694270767,-662.44,0.00020821,2]
[372588374,1752694270776,-460.0,0.00020821,2]
[372588375,1752694270787,-524.49,0.00020821,2]
[372588376,1752694270797,-1597.39,0.00020821,2]
[372588377,1752694270807,-1445.32,0.00020821,2]
[372588378,1752694270818,-2709.09,0.00020821,2]
[372588379,1752694270831,-1335.53,0.00020821,2]
[372588380,1752694270842,-5545.46,0.00020821,2]
[372588381,1752694270853,-1304.17,0.00020821,2]
[372588382,1752694270864,-510.13,0.00020821,2]
[372588383,1752694270876,-11171.65,0.00020821,2]
[372588384,1752694270886,-630.1,0.00020821,2]
[372588385,1752694270896,-2779.93,0.00020821,2]
[372588386,1752694270907,-460.0,0.00020821,2]
[372588387,1752694270919,-234.69,0.00020821,2]
[372588388,1752694270931,-460.0,0.00020821,2]
[372588389,1752694270941,-4474.38,0.00020821,2]
[372588390,1752694270951,-1148.73,0.00020821,2]
[372588391,1752694270964,-3075.57,0.00020821,2]
[372588392,1752694270974,-526.49,0.00020821,2]
[372588393,1752694270983,-2713.8,0.00020821,2]
[372588394,1752694270993,-3091.6,0.00020821,2]
[372588395,1752694271003,-2266.31,0.00020821,2]
[372588396,1752694271012,-460.0,0.00020821,2]
[372588397,1752694271022,-806.94,0.00020821,2]
[372588398,1752694271031,-1349.87,0.00020821,2]
[372588399,1752694271041,-549.68,0.00020821,2]
[372588400,1752694271051,-460.0,0.00020821,2]
[372588401,1752694271060,-1047.43,0.00020821,2]
[372588402,1752694271070,-2179.05,0.00020821,2]
[372588403,1752694271079,-634.4,0.00020821,2]
[372588404,1752694271090,-1174.7,0.00020821,2]
[372588405,1752694271099,-916.81,0.00020821,2]
[372588406,1752694271109,-2595.12,0.00020821,2]
[372588407,1752694271119,-3870.23,0.00020821,2]
[372588408,1752694271128,-561.55,0.00020821,2]
[372588409,1752694271137,-460.0,0.00020821,2]
[372588410,1752694271147,-460.0,0.00020821,2]
[372588411,1752694271156,-2211.43,0.00020821,2]
[372588412,1752694271166,-2071.85,0.00020821,2]
[372588413,1752694271176,-957.85,0.00020821,2]
[372588414,1752694271185,-1424.69,0.00020821,2]
[372588415,1752694271195,-28755.27,0.00020821,2]
[372588416,1752694271207,-1935.43,0.00020821,2]
[372588417,1752694271216,-1704.7,0.00020821,2]
[372588418,1752694271227,-4659.09,0.00020821,2]
[372588419,1752694271237,-460.0,0.00020821,2]
[372588420,1752694271247,-1897.12,0.00020821,2]
[372588421,1752694271257,-460.0,0.00020821,2]
[372588422,1752694271267,-666.96,0.00020821,2]
[372588423,1752694271277,-460.0,0.00020821,2]
[372588424,1752694271287,-460.0,0.00020821,2]
[372588425,1752694271297,-681.41,0.00020821,2]
[372588426,1752694271306,-469.65,0.00020821,2]
[372588427,1752694271316,-1688.57,0.00020821,2]
[372588428,1752694271326,-583.11,0.00020821,2]
[372588429,1752694271336,-1780.26,0.00020821,2]
[372588430,1752694271345,-833.15,0.00020821,2]
[372588431,1752694271355,-561.17,0.00020821,2]
[372588432,1752694271365,-300.0,0.00020821,2]
[372588433,1752694271375,-1905.83,0.00020821,2]
[372588434,1752694271385,-696.16,0.00020821,2]
[372588435,1752694271395,-539.8,0.00020821,2]
[372588436,1752694271405,-14499.52,0.00020821,2]
[372588437,1752694271414,-1534.79,0.00020821,2]
[372588438,1752694271424,-999.3,0.00020821,2]
[372588439,1752694271434,-477.43,0.00020821,2]
[372588440,1752694271444,-460.0,0.00020821,2]
[372588441,1752694271454,-1916.81,0.00020821,2]
[372588442,1752694271466,-556.89,0.00020821,2]
[372588443,1752694271475,-596.95913013,0.00020821,2]
[372588444,1752694271485,-504.15,0.00020821,2]
[372588445,1752694271495,-575.28,0.00020821,2]
[372588446,1752694271504,-20173.8,0.00020821,2]
[372588447,1752694271514,-460.0,0.00020821,2]
[372588448,1752694271524,-5492.42,0.00020821,2]
[372588449,1752694271534,-460.0,0.00020821,2]
[372588450,1752694271545,-1749.11,0.00020821,2]
[372588451,1752694271555,-1126.17,0.00020821,2]
[372588452,1752694271565,-460.0,0.00020821,2]
[372588453,1752694271574,-460.0,0.00020821,2]
[372588454,1752694271584,-469.75,0.00020821,2]
[372588455,1752694271594,-1743.43,0.00020821,2]
[372588456,1752694271603,-460.0,0.00020821,2]
[372588457,1752694271613,-3807.88,0.00020821,2]
[372588458,1752694271623,-1924.77,0.00020821,2]
[372588459,1752694271632,-460.0,0.00020821,2]
[372588460,1752694271643,-1538.52,0.00020821,2]
[372588461,1752694271653,-1430.3,0.00020821,2]
[372588462,1752694271662,-460.0,0.00020821,2]
[372588463,1752694271672,-778.91,0.00020821,2]
[372588464,1752694271682,-2522.39,0.00020821,2]
[372588465,1752694271692,-460.0,0.00020821,2]
[372588466,1752694271702,-1027.2,0.00020821,2]
[372588467,1752694271713,-670.27,0.00020821,2]
[372588468,1752694271723,-460.0,0.00020821,2]
[372588469,1752694271733,-551.73,0.00020821,2]
[372588470,1752694271746,-460.0,0.00020821,2]
[372588471,1752694271755,-460.0,0.00020821,2]
[372588472,1752694271765,-757.32,0.00020821,2]
[372588473,1752694271775,-3913.3,0.00020821,2]
[372588474,1752694271785,-1567.6,0.00020821,2]
[372588475,1752694271795,-460.0,0.00020821,2]
[372588476,1752694271912,-5842.8,0.00020821,2]
[372588477,1752694271922,-536.71,0.00020821,2]
[372588478,1752694271931,-47.32481951,0.00020821,2]
[372588479,1752694271947,-315.32000001,0.00020821,2]
[372588480,1752694271971,-925.2242999,0.00020821,2]
[372588481,1752694272179,-2056.14088058,0.00020821,2]
[372588482,1752694272189,-1129.98,0.00020821,2]
[372588483,1752694272199,-129.56814995,0.00020821,2]
[372588484,1752694272212,-463.62185005,0.00020821,2]
[372588485,1752694272221,-601.52728348,0.00020821,2]
[372588486,1752694272245,-500.0,0.00020676,2]
[372588487,1752694272255,-57.76271652,0.00020821,2]
[372588488,1752694272265,-1196.23728348,0.00020821,2]
[372588489,1752694272277,-608.15271652,0.00020821,2]
[372588490,1752694272287,-1408.65,0.00020821,2]
[372588491,1752694272298,-767.34,0.00020821,2]
[372588492,1752694272309,-1932.82,0.00020821,2]
[372588493,1752694272320,-645.81,0.00020821,2]
[372588494,1752694272330,-460.0,0.00020821,2]
[372588495,1752694272340,-1682.16,0.00020821,2]
[372588496,1752694272349,-1673.93542352,0.00020821,2]
[372588497,1752694272361,-1513.86507549,0.00020821,2]
[372588498,1752694272372,-794.07950099,0.00020821,2]
[372588499,1752694272381,-100.44549901,0.00020821,2]
[372588500,1752694272435,-408.93176301,0.00020821,2]
[372588501,1752694272445,-7.29828693,0.00020821,2]
[372588502,1752694272457,-1521.95,0.00020821,2]
[372588503,1752694272469,-6611.25473947,0.00020821,2]
[372588504,1752694272489,-460.0,0.00019999,2]
[372588505,1752694272499,-138.16535699,0.00020821,2]
[372588506,1752694273258,-460.0,0.00019979,2]
[372588507,1752694273267,-78.97057758,0.00019979,2]
[372588508,1752694273280,-381.02942242,0.00019979,2]
[372588509,1752694273291,-1079.11,0.00019999,2]
[372588510,1752694273300,-460.0,0.00019999,2]
[372588511,1752694273309,-460.0,0.00019999,2]
[372588512,1752694273318,-282.02312578,0.00019999,2]
[372588513,1752694273402,-177.97687422,0.00019999,2]
[372588514,1752694273412,-588.03122197,0.00019999,2]
[372588515,1752694273421,-1079.11,0.00020136,2]
[372588516,1752694273431,-490.0,0.00020136,2]
[372588517,1752694273440,-1079.11,0.00020273,2]
[372588518,1752694273450,-1079.11,0.0002041,2]
[372588519,1752694273460,-1079.11,0.00020547,2]
[372588520,1752694273470,-1079.11,0.00020684,2]
[372588521,1752694273480,-4445.21161661,0.00020821,2]
[372588522,1752694273490,-460.0,0.00020821,2]
[372588523,1752694273501,-460.0,0.00020821,2]
[372588524,1752694273510,-460.0,0.00020821,2]
[372588525,1752694273520,-3114.36,0.00020821,2]
[372588526,1752694273529,-670.06,0.00020821,2]
[372588527,1752694273539,-1079.11,0.00020821,2]
[372588528,1752694273548,-623.0,0.00020822,2]
[372588529,1752694273558,-432.12610216,0.00020822,2]
[372588530,1752694273567,-500.0,0.00020822,2]
[372588531,1752694273576,-662.0,0.00020822,2]
[372588532,1752694273585,-500.0,0.00020822,2]
[372588533,1752694273594,-500.0,0.00020822,2]
[372588534,1752694273603,-435.0,0.00020822,2]
[372588535,1752694273613,-500.0,0.00020822,2]
[372588536,1752694273623,-2489.27,0.00020822,2]
[372588537,1752694273632,-500.0,0.00020822,2]
[372588538,1752694273644,-500.0,0.00020822,2]
[372588539,1752694273655,-300.62,0.00020822,2]
[372588540,1752694273665,-300.4,0.00020822,2]
[372588541,1752694273674,-151.0,0.00020822,2]
[372588542,1752694273682,-151.0,0.00020822,2]
[372588543,1752694273691,-151.0,0.00020822,2]
[372588544,1752694273700,-151.0,0.00020822,2]
[372588545,1752694273710,-151.0,0.00020822,2]
[372588546,1752694273719,-151.0,0.00020822,2]
[372588547,1752694273729,-151.0,0.00020822,2]
[372588548,1752694273740,-151.0,0.00020822,2]
[372588549,1752694273750,-151.0,0.00020822,2]
[372588550,1752694273760,-2515.14743547,0.00020823,2]
[372588551,1752694273769,-500.0,0.00020836,2]
[372588552,1752694273779,-500.0,0.00020849,2]
[372588553,1752694273788,-168.0,0.00020859,2]
[372588554,1752694273797,-500.0,0.00020864,2]
[372588555,1752694273808,-960.54859386,0.00020866,4]
[372588556,1752694273820,-187.35512714,0.00020868,2]
[372588557,1752694273831,-212.464985,0.00020878,2]
[372588558,1752694273842,-212.464985,0.00020878,2]
[372588559,1752694273852,-500.0,0.00020891,2]
[372588560,1752694273862,-150.0,0.00020895,2]
[372588561,1752694273874,-2300.0,0.000209,7]
[372588562,1752694273885,-150.0,0.00020905,2]
[372588563,1752694273895,-150.0,0.00020906,2]
[372588564,1752694273907,-1377.919393,0.00020907,2]
[372588565,1752694273917,-1377.919393,0.00020907,2]
[372588566,1752694273927,-151.0,0.00020907,2]
[372588567,1752694273938,-495.930608,0.00020907,2]
[372588568,1752694273947,-495.930608,0.00020907,2]
[372588569,1752694273956,-151.0,0.00020907,2]
[372588570,1752694273967,-151.0,0.00020907,2]
[372588571,1752694273976,-166.87251,0.00020907,2]
[372588572,1752694273986,-166.87251,0.00020907,2]
[372588573,1752694273998,-369.229617,0.00020907,2]
[372588574,1752694274009,-151.0,0.00020907,2]
[372588575,1752694274018,-151.0,0.00020907,2]
[372588576,1752694274027,-369.229617,0.00020907,2]
[372588577,1752694274036,-151.0,0.00020907,2]
[372588578,1752694274047,-151.0,0.00020907,2]
[372588579,1752694274057,-240.463999,0.00020907,2]
[372588580,1752694274068,-240.463999,0.00020907,2]
[372588581,1752694274078,-151.0,0.00020907,2]
[372588582,1752694274088,-151.0,0.00020907,2]
[372588583,1752694274102,-729.281418,0.00020907,2]
[372588584,1752694274111,-729.281418,0.00020907,2]
[372588585,1752694274121,-185.955213,0.00020907,2]
[372588586,1752694274131,-185.955213,0.00020907,2]
[372588587,1752694274143,-151.0,0.00020907,2]
[372588588,1752694274153,-151.0,0.00020907,2]
[372588589,1752694274164,-500.0,0.0002091,2]
[372588590,1752694274175,-500.0,0.0002091,2]
[372588591,1752694274184,-151.0,0.00020911,2]
[372588592,1752694274194,-1242.077173,0.00020911,2]
[372588593,1752694274204,-1242.077173,0.00020911,2]
[372588594,1752694274215,-5837.79762,0.00020911,2]
[372588595,1752694274224,-5837.79762,0.00020911,2]
[372588596,1752694274234,-222.631914,0.00020911,2]
[372588597,1752694274244,-222.631914,0.00020911,2]
[372588598,1752694274254,-373.495347,0.00020911,2]
[372588599,1752694274264,-373.495347,0.00020911,2]
[372588600,1752694274274,-277.919463,0.00020911,2]
[372588601,1752694274283,-277.919463,0.00020911,2]
[372588602,1752694274293,-151.0,0.00020911,2]
[372588603,1752694274303,-151.0,0.00020911,2]
[372588604,1752694274313,-752.265853,0.00020911,2]
[372588605,1752694274323,-752.265853,0.00020911,2]
[372588606,1752694274333,-151.0,0.00020911,2]
[372588607,1752694274342,-157.971752,0.00020911,2]
[372588608,1752694274352,-347.243764,0.00020911,2]
[372588609,1752694274362,-347.243764,0.00020911,2]
[372588610,1752694274372,-150.0,0.00020914,2]
[372588611,1752694274381,-3000.0,0.00020917,5]
[372588612,1752694274391,-500.0,0.00020919,2]
[372588613,1752694274400,-4171.0650471,0.00020921,2]
[372588614,1752694274410,-722.0,0.00020927,15]
[372588615,1752694274420,-6271.53,0.00020937,2]
[372588616,1752694274429,-2395.89,0.00020937,2]
[372588617,1752694274439,-4601.06,0.00020937,2]
[372588618,1752694274448,-12291.03,0.00020937,2]
[372588619,1752694274457,-39.49644717,0.00020937,2]
[372588620,1752694274472,-2773.86355283,0.00020937,2]
[372588621,1752694274481,-460.0,0.00020937,2]
[372588622,1752694274490,-2348.95,0.00020937,2]
[372588623,1752694274499,-1391.5,0.00020937,2]
[372588624,1752694274509,-3452.04,0.00020937,2]
[372588625,1752694274519,-968.86,0.00020937,2]
[372588626,1752694274529,-2953.12,0.00020937,2]
[372588627,1752694274540,-646.85,0.00020937,2]
[372588628,1752694274550,-11314.79,0.00020937,2]
[372588629,1752694274561,-2418.2,0.00020937,2]
[372588630,1752694274571,-3107.21,0.00020937,2]
[372588631,1752694274581,-2361.71,0.00020937,2]
[372588632,1752694274591,-729.37,0.00020937,2]
[372588633,1752694274600,-1621.06,0.00020937,2]
[372588634,1752694274609,-1194.52,0.00020938,2]
[372588635,1752694274619,-3120.91,0.00020938,2]
[372588636,1752694274629,-43.02508298,0.00020938,2]
[372588637,1752694275589,-358.86,0.00019978,2]
[372588638,1752694275599,-315.05615391,0.00019979,2]
[372588639,1752694275609,-474.36385149,0.00019979,2]
[372588640,1752694275620,-2147.54794371,0.00019979,2]
[372588641,1752694275829,-1453.2482048,0.00019979,2]
[372588642,1752694275839,-460.0,0.00019979,2]
[372588643,1752694275849,-492.41,0.00019979,2]
[372588644,1752694275859,-460.0,0.00019979,2]
[372588645,1752694275868,-460.0,0.00019999,2]
[372588646,1752694275878,-763.98,0.00019999,2]
[372588647,1752694275888,-460.0,0.00019999,2]
[372588648,1752694275899,-326.72563188,0.00019999,2]
[372588649,1752694275912,-133.27436812,0.00019999,2]
[372588650,1752694275923,-502.78,0.00019999,2]
[372588651,1752694275933,-460.0,0.00019999,2]
[372588652,1752694275943,-2428.89,0.00019999,2]
[372588653,1752694275955,-380.87,0.00020116,2]
[372588654,1752694275966,-4075.16,0.00020116,2]
[372588655,1752694275976,-460.0,0.00020136,2]
[372588656,1752694275986,-763.98,0.00020136,2]
[372588657,1752694275995,-460.0,0.00020136,2]
[372588658,1752694276006,-460.0,0.00020136,2]
[372588659,1752694276017,-2428.89,0.00020136,2]
[372588660,1752694276028,-4075.16,0.00020253,2]
[372588661,1752694276038,-763.98,0.00020273,2]
[372588662,1752694276048,-460.0,0.00020273,2]
[372588663,1752694276057,-500.0,0.00020273,2]
[372588664,1752694276067,-4075.16,0.0002039,2]
[372588665,1752694276076,-763.98,0.0002041,2]
[372588666,1752694276085,-460.0,0.0002041,2]
[372588667,1752694276095,-4075.16,0.00020527,2]
[372588668,1752694276104,-763.98,0.00020547,2]
[372588669,1752694276114,-460.0,0.00020547,2]
[372588670,1752694276123,-4075.16,0.00020664,2]
[372588671,1752694276133,-763.98,0.00020684,2]
[372588672,1752694276142,-21351.0,0.00020774,2]
[372588673,1752694276152,-4075.16,0.00020801,2]
[372588674,1752694276162,-882.02658392,0.00020938,2]
[372588675,1752694276174,-4298.4783331,0.00020938,2]
[372588676,1752694276184,-2531.7465535,0.00020938,2]
[372588677,1752694276268,-763.98,0.00020821,2]
[372588678,1752694276278,-106.58970015,0.00020938,2]
[372588679,1752694282324,529.0,0.00017432,2]
[372588680,1752694288505,700.00000001,0.0001979,30]
[372588681,1752694319759,510.0,0.00017432,2]
[372588682,1752694398401,296.11,0.00018161,2]
[372588684,1752694648862,244.05,0.00013699,2]
[372588687,1752694861226,218.30667875,0.00018161,2]
[372588688,1752694861754,3394.09332125,0.00018161,2]
[372588689,1752695051367,282.41957398,0.00018,2]
[372588693,1752695280247,-150.0,0.00018222,2]
[372588694,1752695280270,-150.0,0.00018222,2]
[372588695,1752695280293,-150.0,0.00018222,2]
[372588696,1752695280315,-150.0,0.00018222,2]
[372588697,1752695280337,-154.20834801,0.00018222,2]
[372588698,1752695280358,-150.0,0.00018222,2]
[372588699,1752695280379,-500.0,0.00018275,2]
[372588700,1752695280400,-195.31580479,0.00018446,2]
[372588701,1752695280421,-1382.11,0.00018507,2]
[372588702,1752695280443,-179.24,0.00018546,2]
[372588703,1752695280464,-151.0,0.00018584,2]
[372588704,1752695280904,-151.0,0.00018584,2]
[372588705,1752695280928,-151.0,0.00018584,2]
[372588706,1752695280950,-151.0,0.00018584,2]
[372588707,1752695280973,-151.0,0.00018584,2]
[372588708,1752695280997,-151.0,0.00018584,2]
[372588709,1752695281023,-151.0,0.00018584,2]
[372588710,1752695281044,-151.0,0.00018584,2]
[372588711,1752695281067,-151.0,0.00018584,2]
[372588712,1752695281089,-151.0,0.00018584,2]
[372588713,1752695281112,-151.0,0.00018584,2]
[372588714,1752695281133,-151.0,0.00018584,2]
[372588715,1752695281155,-151.0,0.00018584,2]
[372588716,1752695281178,-190.0,0.00018591,7]
[372588717,1752695281199,-1200.0,0.00018593,2]
[372588718,1752695281220,-300.0,0.00018593,2]
[372588719,1752695281241,-8186.1258472,0.00018595,2]
[372588720,1752695324089,-1000.0,0.00018221,2]
[372588721,1752695324115,-1000.0,0.00018334,2]
[372588722,1752695324138,-339.56,0.00018523,2]
[372588723,1752695324160,-413.82,0.00018581,2]
[372588724,1752695324181,-7128.6441528,0.00018595,2]
[372588725,1752695324203,-117.9758472,0.00018729,2]
[372588728,1752695358631,-529.0,0.00018301,2]
[372588729,1752695358653,-250.0,0.00018538,2]
[372588730,1752695358676,-132.0241528,0.00018729,2]
[372588731,1752695358698,-250.0,0.00018823,2]
[372588732,1752695358720,-600.0,0.00018861,2]
[372588733,1752695358744,-299.99,0.00018862,4]
[372588734,1752695358765,-2875.92,0.00018862,2]
[372588735,1752695358787,-150.99,0.00018862,2]
[372588736,1752695358808,-912.0758472,0.00018862,2]
[372588737,1752695429354,153.21653869,0.00022822,30]
[372588760,1752695431922,-195.31580478,0.00018762,2]
[372588761,1752695431933,-300.0,0.00018861,2]
[372588762,1752695431943,-1200.0,0.00018861,2]
[372588763,1752695431952,-21.42912994,0.00018862,2]
[372588764,1752695432734,-9066.48502286,0.00018862,2]
[372588765,1752695432744,-999.99,0.00018862,2]
[372588766,1752695432753,-150.0,0.00018897,2]
[372588767,1752695432763,-158.16,0.00018968,2]
[372588768,1752695432773,-158.16,0.00018992,2]
[372588769,1752695432782,-1000.0,0.00018997,2]
[372588770,1752695432791,-379.45,0.00018998,2]
[372588771,1752695432801,-586.27,0.00019011,2]
[372588772,1752695432810,-158.16,0.00019016,2]
[372588773,1752695432819,-158.16,0.00019039,2]
[372588774,1752695432829,-277.78627806,0.00019044,2]
[372588775,1752695432838,-158.16,0.00019063,2]
[372588776,1752695432847,-279.85,0.00019069,2]
[372588777,1752695432857,-158.16,0.00019087,2]
[372588778,1752695432866,-158.16,0.0001911,2]
[372588779,1752695432876,-158.16,0.00019134,2]
[372588780,1752695432885,-158.16,0.00019158,2]
[372588781,1752695432898,-151.0,0.00019178,2]
[372588782,1752695432907,-179.78,0.00019178,2]
[372588783,1752695432917,-600.0,0.00019187,2]
[372588784,1752695432926,-150.0,0.00019234,4]
[372588785,1752695432936,-179.24,0.00019473,2]
[372588786,1752695432946,-400.0,0.000195,7]
[372588787,1752695432955,-150.0,0.00019572,4]
[372588788,1752695432965,-800.0,0.000196,7]
[372588789,1752695432975,-1300.0,0.000197,7]
[372588790,1752695432984,-156.587,0.00019726,2]
[372588791,1752695432993,-195.31580478,0.00019778,2]
[372588792,1752695433003,-1700.0,0.000198,7]
[372588793,1752695433013,-151.0,0.0001981,2]
[372588794,1752695433023,-256.71290445,0.0001981,2]
[372588795,1752695433033,-207.4,0.0001981,2]
[372588796,1752695433043,-4031.856,0.0001981,2]
[372588797,1752695433053,-165.43355327,0.0001981,2]
[372588798,1752695433067,-1500.0,0.00019843,2]
[372588799,1752695433077,-4181.034672,0.00019865,2]
[372588800,1752695433087,-413.25859005,0.00019877,2]
[372588801,1752695433098,-5395.00877781,0.00019878,2]
[372588802,1752695433108,-224.6422399,0.00019878,2]
[372588803,1752695433119,-4014.5504,0.00019878,2]
[372588804,1752695433129,-214.67747725,0.00019879,2]
[372588805,1752695433139,-10000.0,0.0001988,2]
[372588806,1752695433153,-168.43719231,0.00019899,2]
[372588807,1752695433163,-2200.0,0.000199,7]
[372588808,1752695433173,-364.108397,0.000199,2]
[372588809,1752695433183,-1907.0949587,0.000199,2]
[372588810,1752695433193,-4335.73295486,0.0001992,2]
[372588811,1752695433203,-5395.00877777,0.00019941,2]
[372588812,1752695433213,-550.83,0.00019967,2]
[372588813,1752695433224,-500.0,0.00019973,2]
[372588814,1752695433233,-4496.15507419,0.00019975,2]
[372588815,1752695433243,-500.0,0.00019976,2]
[372588816,1752695433253,-500.0,0.00019976,2]
[372588817,1752695433263,-358.06759671,0.00019976,2]
[372588818,1752695433273,-500.0,0.00019976,2]
[372588819,1752695433283,-500.0,0.00019976,2]
[372588820,1752695433293,-500.0,0.00019976,2]
[372588821,1752695433303,-500.0,0.00019976,2]
[372588822,1752695433313,-247.674752,0.00019976,2]
[372588823,1752695433323,-177.82690916,0.00019976,2]
[372588824,1752695433333,-500.0,0.00019976,2]
[372588825,1752695433342,-460.0,0.00019976,2]
[372588826,1752695433352,-460.0,0.00019976,2]
[372588827,1752695433362,-460.0,0.00019976,2]
[372588828,1752695433371,-569.62,0.00019976,2]
[372588829,1752695433381,-2217.31,0.00019976,2]
[372588830,1752695433391,-544.09,0.00019976,2]
[372588831,1752695433403,-3719.17,0.00019976,2]
[372588832,1752695433413,-846.12,0.00019976,2]
[372588833,1752695433423,-2565.68,0.00019976,2]
[372588834,1752695433433,-1282.66,0.00019976,2]
[372588835,1752695433442,-1005.27,0.00019976,2]
[372588836,1752695433452,-2262.51,0.00019976,2]
[372588837,1752695433462,-460.0,0.00019976,2]
[372588838,1752695433473,-460.0,0.00019976,2]
[372588839,1752695433484,-814.73,0.00019976,2]
[372588840,1752695433494,-6878.85,0.00019976,2]
[372588841,1752695433504,-2661.08,0.00019976,2]
[372588842,1752695433515,-460.0,0.00019976,2]
[372588843,1752695433526,-1172.96,0.00019976,2]
[372588844,1752695433537,-833.71,0.00019976,2]
[372588845,1752695433547,-460.0,0.00019976,2]
[372588846,1752695433557,-2504.49693146,0.00019976,2]
[372588847,1752695433576,-490.34260303,0.00019976,2]
[372588848,1752695433589,-1455.64046551,0.00019976,2]
[372588849,1752695433599,-436.52399938,0.00019976,2]
[372588850,1752695433609,-1605.96,0.00019976,2]
[372588851,1752695433619,-460.0,0.00019976,2]
[372588852,1752695433629,-2132.13,0.00019976,2]
[372588853,1752695433639,-1046.25,0.00019976,2]
[372588854,1752695433651,-460.0,0.00019976,2]
[372588855,1752695433662,-2800.99,0.00019976,2]
[372588856,1752695433673,-1253.96,0.00019976,2]
[372588857,1752695433684,-460.0,0.00019976,2]
[372588858,1752695433694,-460.0,0.00019976,2]
[372588859,1752695433704,-460.0,0.00019976,2]
[372588860,1752695433715,-2100.58,0.00019976,2]
[372588861,1752695433726,-460.0,0.00019977,2]
[372588862,1752695433736,-460.0,0.00019977,2]
[372588863,1752695433747,-460.0,0.00019977,2]
[372588864,1752695433757,-464.3567246,0.00019977,2]
[372588865,1752695433766,-460.0,0.00019977,2]
[372588866,1752695433776,-1122.31,0.00019977,2]
[372588867,1752695433787,-460.0,0.00019977,2]
[372588868,1752695433796,-460.0,0.00019977,2]
[372588869,1752695433807,-460.0,0.00019977,2]
[372588870,1752695433817,-623.51212117,0.00019977,2]
[372588871,1752695436902,-460.0,0.00019976,2]
[372588872,1752695436912,-460.0,0.00019976,2]
[372588873,1752695436922,-1025.40787883,0.00019977,2]
[372588874,1752695436931,-774.34,0.00019977,2]
[372588875,1752695436941,-460.0,0.00019977,2]
[372588876,1752695436951,-460.72055114,0.00019977,2]
[372588877,1752695436960,-460.0,0.00019977,2]
[372588878,1752695436969,-460.0,0.00019977,2]
[372588879,1752695436978,-460.0,0.00019977,2]
[372588880,1752695436988,-460.0,0.00019977,2]
[372588881,1752695436997,-460.0,0.00019977,2]
[372588883,1752695437007,-460.0,0.00019977,2]
[372588885,1752695437016,-659.95,0.00019977,2]
[372588887,1752695437025,-615.65,0.00019977,2]
[372588889,1752695437035,-460.0,0.00019977,2]
[372588891,1752695437044,-1103.96136063,0.00019977,2]
[372588893,1752695437060,-344.85863937,0.00019977,2]
[372588895,1752695437069,-460.0,0.00019977,2]
[372588897,1752695437078,-460.0,0.00019977,2]
[372588899,1752695437088,-1081.03,0.00019977,2]